bitfinex/quotes_SOLUSD_20250525
["timestamp","ask_amount","ask_price","bid_price","bid_amount"]
[1748138866121,4.16123178,170.95,170.9,35.02]
[1748138866323,26.0,170.94,170.9,35.02]
[1748138867423,39.48430669,170.93,170.9,35.02]
[1748138867639,39.48430669,170.93,170.91,256.66]
[1748138868713,26.0,170.93,170.9,35.02]
[1748138869641,13.48430669,170.94,170.86,18.64964886]
[1748138869852,13.48430669,170.94,170.87,35.02]
[1748138871036,163.2152,170.96,170.84,82.5]
[1748138871037,13.48430669,170.91,170.88,35.02]
[1748138871211,13.48430669,170.9,170.88,35.02]
[1748138871825,13.48430669,170.9,170.83,18.64964886]
[1748138872032,13.48430669,170.9,170.84,35.02]
[1748138872935,13.48430669,170.88,170.81,18.64964886]
[1748138873127,13.48430669,170.88,170.85,35.02]
[1748138873428,13.48430669,170.89,170.85,35.02]
[1748138873621,13.48430669,170.89,170.86,35.02]
[1748138874733,13.48430669,170.87,170.75,1.5154]
[1748138875047,13.48430669,170.84,170.76,53.68964886]
[1748138875208,13.48430669,170.84,170.76,35.04]
[1748138875410,13.48430669,170.84,170.77,26.0]
[1748138876212,13.48430669,170.83,170.78,35.04]
[1748138876645,13.48430669,170.83,170.79,35.04]
[1748138877554,13.48430669,170.83,170.8,256.64]
[1748138878838,13.48430669,170.85,170.8,256.64]
[1748138879008,13.48430669,170.85,170.8,38.06]
[1748138879209,13.48430669,170.86,170.79,35.04]
[1748138879747,1.64,170.88,170.79,35.04]
[1748138879956,4.16123178,170.89,170.8,44.64964886]
[1748138880259,13.48430669,170.88,170.8,44.64964886]
[1748138880468,4.16123178,170.89,170.8,44.64964886]
[1748138880753,4.16123178,170.89,170.83,26.0]
[1748138881057,4.16123178,170.89,170.84,35.04]
[1748138881435,13.48430669,170.94,170.84,35.04]
[1748138881742,13.48430669,170.94,170.85,18.64964886]
[1748138882548,13.48430669,170.93,170.84,35.04]
[1748138883636,13.48430669,170.94,170.85,18.64964886]
[1748138887461,13.48430669,170.94,170.86,218.58]
[1748138887633,13.48430669,170.94,170.86,256.64]
[1748138889253,13.48430669,170.93,170.86,256.64]
[1748138889944,13.48430669,170.94,170.86,256.64]
[1748138890335,13.48430669,170.94,170.85,18.64964886]
[1748138897569,13.48430669,170.92,170.86,256.62]
[1748138897867,13.48430669,170.93,170.86,256.62]
[1748138898042,13.48430669,170.93,170.86,38.06]
[1748138898245,13.48430669,170.94,170.85,18.64964886]
[1748138898954,13.48430669,170.92,170.85,18.64964886]
[1748138899470,13.48430669,170.93,170.85,18.64964886]
[1748138900070,13.48430669,170.92,170.85,18.64964886]
[1748138900452,13.48430669,170.93,170.85,18.64964886]
[1748138902970,13.48430669,170.94,170.85,18.64964886]
[1748138903881,13.48430669,170.95,170.85,18.64964886]
[1748138904681,13.48430669,170.94,170.85,18.64964886]
[1748138905357,26.0,170.96,170.85,18.64964886]
[1748138905557,13.48430669,170.95,170.86,26.0]
[1748138906766,1.5701,170.97,170.87,18.64964886]
[1748138907073,13.48430669,170.95,170.87,18.64964886]
[1748138907456,13.48430669,170.94,170.88,256.6]
[1748138910282,13.48430669,170.94,170.88,38.04]
[1748138910778,13.48430669,170.94,170.87,18.64964886]
[1748138914081,13.48430669,170.94,170.84,117.54]
[1748138914266,13.48430669,170.94,170.85,35.02]
[1748138914267,13.48430669,170.88,170.85,35.02]
[1748138914795,15.00830669,170.9,170.85,35.02]
[1748138917396,1.524,170.9,170.85,35.02]
[1748138917572,13.48430669,170.89,170.86,256.6]
[1748138917971,15.00830669,170.9,170.86,256.6]
[1748138918183,1.524,170.9,170.85,35.02]
[1748138918387,13.48430669,170.92,170.85,35.02]
[1748138919088,13.48430669,170.91,170.85,35.02]
[1748138925409,13.48430669,170.92,170.85,35.02]
[1748138927596,13.48430669,170.92,170.86,256.64]
[1748138927913,5.68523178,170.95,170.87,18.64964886]
[1748138928100,4.16123178,170.95,170.89,18.64964886]
[1748138928306,4.16123178,170.95,170.9,35.02]
[1748138929824,13.48430669,170.97,170.9,35.02]
[1748138933624,13.48430669,170.95,170.88,26.0]
[1748138933807,135.7,170.99,170.88,26.0]
[1748138933808,13.48430669,170.92,170.89,35.02]
[1748138933999,13.48430669,170.91,170.89,35.02]
[1748138934621,13.48430669,170.92,170.89,35.02]
[1748138935121,26.0,170.96,170.89,35.02]
[1748138935122,13.48430669,170.91,170.89,35.02]
[1748138936219,13.48430669,170.92,170.89,35.02]
[1748138937335,15.00200669,170.93,170.89,35.02]
[1748138937640,13.48430669,170.91,170.9,256.56]
[1748138938734,13.48430669,170.92,170.9,256.56]
[1748138939041,13.48430669,170.94,170.89,35.02]
[1748138939218,13.48430669,170.95,170.89,35.02]
[1748138940529,13.48430669,170.94,170.89,35.02]
[1748138940827,13.48430669,170.93,170.89,35.02]
[1748138941044,1.5177,170.97,170.89,35.02]
[1748138941045,13.48430669,170.91,170.89,35.02]
[1748138941652,1.5177,170.97,170.89,35.02]
[1748138941815,13.48430669,170.92,170.89,35.02]
[1748138942966,13.48430669,170.94,170.89,35.02]
[1748138947329,1.5177,170.97,170.89,35.02]
[1748138947528,13.48430669,170.93,170.9,256.56]
[1748138948032,13.48430669,170.92,170.86,18.79181043]
[1748138948224,13.48430669,170.92,170.87,35.02]
[1748138948736,13.48430669,170.93,170.87,35.02]
[1748138948922,13.48430669,170.94,170.87,35.02]
[1748138951458,13.48430669,170.93,170.87,35.02]
[1748138952450,5.67893178,170.97,170.87,35.02]
[1748138952451,13.48430669,170.94,170.87,35.02]
[1748138956136,13.48430669,170.93,170.87,35.02]
[1748138957560,13.48430669,170.93,170.88,256.56]
[1748138958870,19.16323847,170.97,170.88,44.64964886]
[1748138959061,19.16323847,170.97,170.88,127.14964886]
[1748138960345,15.00200669,170.97,170.88,127.14964886]
[1748138962446,13.48430669,170.96,170.88,127.14964886]
[1748138963568,1.5177,170.97,170.88,127.14964886]
[1748138963765,15.00200669,170.97,170.88,127.14964886]
[1748138964467,4.16123178,171.01,170.91,26.0]
[1748138964648,13.48430669,170.98,170.92,35.02]
[1748138965064,13.48430669,170.97,170.92,35.02]
[1748138966671,13.48430669,170.94,170.88,101.14964886]
[1748138966871,13.48430669,170.94,170.89,35.02]
[1748138967379,13.48430669,170.95,170.89,35.02]
[1748138967561,13.48430669,170.95,170.9,256.5]
[1748138969174,43.64553847,171.0,170.9,256.5]
[1748138969175,13.48430669,170.94,170.9,256.5]
[1748138969473,13.48430669,170.91,170.83,1.5109]
[1748138969771,26.0,170.94,170.84,53.66964886]
[1748138969979,13.48430669,170.9,170.84,53.66964886]
[1748138972579,13.48430669,170.9,170.84,18.64964886]
[1748138972775,13.48430669,170.9,170.85,35.02]
[1748138973488,13.48430669,170.86,170.81,18.64964886]
[1748138973685,13.48430669,170.86,170.82,35.02]
[1748138974490,13.48430669,170.86,170.79,23.33387498]
[1748138974703,13.48430669,170.86,170.8,35.02]
[1748138976898,1.5808,170.9,170.81,18.64964886]
[1748138977205,1.5808,170.9,170.81,101.14964886]
[1748138977376,39.48430669,170.91,170.81,101.14964886]
[1748138977700,39.48430669,170.91,170.83,18.64964886]
[1748138977870,4.16123178,170.92,170.83,101.14964886]
[1748138978893,17.64553847,170.92,170.83,101.14964886]
[1748138979194,1.5412,170.94,170.83,101.14964886]
[1748138979499,13.48430669,170.92,170.83,101.14964886]
[1748138981608,13.48430669,170.91,170.83,101.14964886]
[1748138981975,13.48430669,170.9,170.84,35.02]
[1748138982380,13.48430669,170.89,170.84,35.02]
[1748138982574,13.48430669,170.88,170.8,18.64964886]
[1748138982783,13.48430669,170.88,170.82,18.64964886]
[1748138983478,13.48430669,170.89,170.82,18.64964886]
[1748138984981,13.48430669,170.9,170.82,18.64964886]
[1748138986997,13.48430669,170.89,170.82,18.64964886]
[1748138987502,13.48430669,170.89,170.83,256.56]
[1748138988498,13.48430669,170.87,170.84,73.02]
[1748138989002,13.48430669,170.87,170.84,35.04]
[1748138989390,13.48430669,170.86,170.84,35.04]
[1748138990902,45.67930669,170.91,170.71,164.65547688]
[1748138990903,13.48430669,170.85,170.76,18.64964886]
[1748138991085,13.48430669,170.84,170.77,35.04]
[1748138991286,13.48430669,170.84,170.77,39.82477813]
[1748138992282,13.48430669,170.85,170.77,39.82477813]
[1748138994602,13.48430669,170.85,170.77,4.78477813]
[1748138994812,13.48430669,170.84,170.78,35.04]
[1748138995784,27.6094,170.87,170.78,35.04]
[1748138995785,13.48430669,170.85,170.78,35.04]
[1748138997488,13.48430669,170.85,170.79,256.6]
[1748138998321,1.6094,170.87,170.8,18.64964886]
[1748138998492,13.48430669,170.89,170.8,18.64964886]
[1748138998693,39.48430669,170.89,170.79,18.64964886]
[1748138999713,26.0,170.89,170.79,24.82784886]
[1748139000014,39.48430669,170.89,170.79,24.82784886]
[1748139000697,26.0,170.89,170.79,24.82784886]
[1748139002411,13.48430669,170.92,170.83,18.64964886]
[1748139002619,13.48430669,170.92,170.84,35.04]
[1748139003202,13.48430669,170.94,170.85,18.64964886]
[1748139003402,21.30420669,170.95,170.85,18.64964886]
[1748139003610,41.13940669,170.95,170.85,18.64964886]
[1748139004008,4.16123178,170.98,170.87,18.64964886]
[1748139004214,13.48430669,170.97,170.87,18.64964886]
[1748139004413,39.48430669,170.97,170.87,20.19604886]
[1748139004618,4.16123178,170.98,170.87,20.19604886]
[1748139004897,41.13940669,170.99,170.87,20.19604886]
[1748139005514,15.13940669,170.99,170.87,20.19604886]
[1748139005717,15.13940669,170.99,170.89,18.64964886]
[1748139006014,26.0,171.0,170.91,18.64964886]
[1748139006208,13.48430669,171.0,170.91,18.64964886]
[1748139006895,13.48430669,170.99,170.91,18.64964886]
[1748139007601,13.48430669,170.99,170.92,256.54]
[1748139008617,13.48430669,170.97,170.92,256.54]
[1748139008913,13.48430669,170.98,170.91,18.64964886]
[1748139009537,39.48430669,170.97,170.9,35.04]
[1748139009825,13.48430669,170.94,170.91,35.02]
[1748139010123,13.48430669,170.93,170.91,35.02]
[1748139010337,13.48430669,170.94,170.91,35.02]
[1748139010715,13.48430669,170.93,170.91,35.02]
[1748139011643,13.48430669,170.94,170.91,35.02]
[1748139011826,13.48430669,170.95,170.91,35.02]
[1748139013850,13.48430669,170.94,170.91,35.02]
[1748139014339,15.14640669,170.96,170.91,35.02]
[1748139014841,1.6621,170.96,170.91,35.02]
[1748139015036,15.14640669,170.96,170.91,35.02]
[1748139016326,13.48430669,170.95,170.91,35.02]
[1748139017537,13.48430669,170.95,170.92,256.48]
[1748139017738,15.14640669,170.96,170.92,256.48]
[1748139018040,15.14640669,170.96,170.92,37.94]
[1748139018341,13.48430669,170.93,170.85,18.64964886]
[1748139018545,13.48430669,170.93,170.87,18.64964886]
[1748139019342,13.48430669,170.92,170.85,82.5]
[1748139019524,13.48430669,170.89,170.83,18.64964886]
[1748139019849,13.48430669,170.89,170.86,35.02]
[1748139020525,13.48430669,170.88,170.87,35.02]
[1748139020723,13.48430669,170.88,170.8,18.64964886]
[1748139020927,13.48430669,170.87,170.81,35.02]
[1748139023349,13.48430669,170.86,170.8,18.64964886]
[1748139023550,13.48430669,170.84,170.75,1.5085]
[1748139023748,13.48430669,170.84,170.76,53.66964886]
[1748139024665,13.48430669,170.86,170.77,0.14216157]
[1748139024864,13.48430669,170.86,170.78,35.02]
[1748139026970,26.0,170.88,170.78,35.02]
[1748139027273,13.48430669,170.85,170.78,35.02]
[1748139027448,13.48430669,170.85,170.79,256.5]
[1748139030577,13.48430669,170.84,170.79,37.92]
[1748139030767,161.7,170.88,170.75,1.5085]
[1748139030966,39.48430669,170.84,170.76,35.04]
[1748139031174,39.48430669,170.84,170.65,17.52]
[1748139031175,13.48430669,170.79,170.69,82.5]
[1748139031354,13.48430669,170.79,170.7,35.04]
[1748139031558,13.48430669,170.79,170.71,18.64964886]
[1748139032573,41.13380669,170.8,170.71,18.64964886]
[1748139033276,27.6495,170.84,170.73,18.64964886]
[1748139033576,13.48430669,170.83,170.73,18.64964886]
[1748139033761,13.48430669,170.8,170.73,18.64964886]
[1748139034360,27.6495,170.84,170.73,18.64964886]
[1748139034560,13.48430669,170.81,170.73,18.64964886]
[1748139035072,13.48430669,170.81,170.74,35.04]
[1748139037482,26.0,170.81,170.75,256.6]
[1748139037867,13.48430669,170.81,170.75,256.6]
[1748139038782,13.48430669,170.78,170.71,0.14216157]
[1748139038969,32.5072,170.81,170.72,35.04]
[1748139039278,32.5072,170.81,170.69,1.5052]
[1748139039595,13.48430669,170.77,170.7,18.64964886]
[1748139039770,13.48430669,170.77,170.7,53.68964886]
[1748139040272,13.48430669,170.74,170.63,87.80838505]
[1748139040477,1.6466,170.76,170.65,18.64964886]
[1748139040674,1.6466,170.76,170.65,101.14964886]
[1748139040871,39.48430669,170.77,170.65,101.14964886]
[1748139041372,13.48430669,170.76,170.65,101.14964886]
[1748139041560,13.48430669,170.75,170.65,101.14964886]
[1748139042461,13.48430669,170.74,170.65,101.14964886]
[1748139043077,13.48430669,170.74,170.66,35.06]
[1748139043459,13.48430669,170.74,170.67,35.06]
[1748139043675,26.0,170.77,170.67,35.06]
[1748139043856,13.48430669,170.75,170.67,35.06]
[1748139044069,13.48430669,170.74,170.67,35.06]
[1748139044265,26.0,170.77,170.67,35.06]
[1748139044476,13.48430669,170.74,170.67,35.06]
[1748139045165,13.48430669,170.74,170.63,44.64964886]
[1748139045356,13.48430669,170.74,170.65,18.64964886]
[1748139045768,13.48430669,170.75,170.65,18.64964886]
[1748139046855,13.48430669,170.74,170.65,18.64964886]
[1748139047384,13.48430669,170.75,170.65,18.64964886]
[1748139047682,13.48430669,170.75,170.66,256.68]
[1748139047870,13.48430669,170.75,170.66,37.94]
[1748139048070,13.48430669,170.75,170.65,18.64964886]
[1748139048662,1.6466,170.8,170.65,18.64964886]
[1748139048866,13.48430669,170.78,170.65,18.64964886]
[1748139049078,26.0,170.77,170.65,18.64964886]
[1748139049885,13.48430669,170.77,170.65,18.64964886]
[1748139051683,26.0,170.78,170.65,18.64964886]
[1748139051882,39.48430669,170.78,170.65,101.14964886]
[1748139052484,26.0,170.78,170.65,101.14964886]
[1748139052663,1.6466,170.8,170.65,101.14964886]
[1748139052867,26.0,170.78,170.65,101.14964886]
[1748139053080,13.48430669,170.77,170.65,101.14964886]
[1748139053881,26.0,170.78,170.65,101.14964886]
[1748139054889,39.48430669,170.78,170.65,101.14964886]
[1748139055098,13.48430669,170.75,170.67,18.64964886]
[1748139055969,14.98570669,170.75,170.68,35.06]
[1748139056203,1.5014,170.75,170.68,35.06]
[1748139057487,14.98570669,170.75,170.69,257.6]
[1748139057678,1.5014,170.75,170.69,257.6]
[1748139057997,14.98570669,170.75,170.69,257.6]
[1748139058174,13.48430669,170.74,170.69,257.6]
[1748139058574,14.98570669,170.75,170.69,257.6]
[1748139058775,14.98570669,170.75,170.69,38.84]
[1748139059099,1.5014,170.75,170.69,38.84]
[1748139059294,14.98570669,170.75,170.69,38.84]
[1748139059473,14.98570669,170.75,170.68,35.06]
[1748139059676,13.48430669,170.74,170.68,35.06]
[1748139059877,39.48430669,170.74,170.62,90.2899]
[1748139060176,13.48430669,170.73,170.63,53.70964886]
[1748139060602,13.48430669,170.71,170.64,35.06]
[1748139060791,39.48430669,170.71,170.65,35.06]
[1748139061098,26.0,170.71,170.65,35.06]
[1748139061977,26.0,170.71,170.6,18.64964886]
[1748139062183,39.48430669,170.71,170.61,35.06]
[1748139062980,39.48430669,170.71,170.62,18.64964886]
[1748139064119,13.48430669,170.7,170.62,18.64964886]
[1748139064488,39.48430669,170.71,170.62,18.64964886]
[1748139065776,39.48430669,170.71,170.63,35.06]
[1748139065777,13.48430669,170.7,170.63,35.06]
[1748139066805,13.48430669,170.68,170.6,18.64964886]
[1748139067109,39.48430669,170.68,170.64,35.06]
[1748139067474,39.48430669,170.68,170.65,257.68]
[1748139067780,14.98540669,170.69,170.66,35.06]
[1748139068682,1.5011,170.69,170.66,35.06]
[1748139068884,27.5011,170.69,170.66,35.06]
[1748139069092,27.5011,170.69,170.57,26.0]
[1748139069093,26.0,170.65,170.53,1.5494]
[1748139069297,169.6205,170.69,170.56,18.64964886]
[1748139069298,13.48430669,170.64,170.56,18.64964886]
[1748139069499,39.48430669,170.66,170.56,18.64964886]
[1748139069885,26.0,170.66,170.56,18.64964886]
[1748139070604,13.48430669,170.67,170.56,18.64964886]
[1748139070901,26.0,170.66,170.56,18.64964886]
[1748139071306,26.0,170.66,170.5,9.61699735]
[1748139071307,13.48430669,170.62,170.5,6.6448]
[1748139071602,39.48430669,170.62,170.51,35.08]
[1748139071985,39.48430669,170.62,170.52,18.64964886]
[1748139072694,13.48430669,170.63,170.52,18.64964886]
[1748139072890,13.48430669,170.61,170.52,18.64964886]
[1748139073103,13.48430669,170.61,170.5,25.29444886]
[1748139073412,13.48430669,170.59,170.51,35.08]
[1748139073714,13.48430669,170.58,170.52,35.08]
[1748139074303,41.12400669,170.58,170.52,35.08]
[1748139075208,41.12400669,170.58,170.47,6.3563]
[1748139075509,27.6397,170.58,170.48,53.87181043]
[1748139075708,27.6397,170.58,170.45,4.7058953]
[1748139075709,26.0,170.55,170.45,4.7058953]
[1748139075887,39.48430669,170.57,170.46,35.22216157]
[1748139076203,39.48430669,170.57,170.47,18.64964886]
[1748139076803,13.48430669,170.56,170.48,35.08]
[1748139077192,1.6397,170.58,170.49,18.64964886]
[1748139077509,13.48430669,170.57,170.5,257.8]
[1748139078089,13.48430669,170.56,170.5,257.8]
[1748139078289,13.48430669,170.56,170.5,38.88]
[1748139078594,13.48430669,170.56,170.51,35.08]
[1748139079095,13.48430669,170.55,170.51,35.08]
[1748139080388,13.48430669,170.56,170.51,35.08]
[1748139080707,13.48430669,170.57,170.51,35.08]
[1748139080897,15.12400669,170.58,170.51,35.08]
[1748139081509,13.48430669,170.57,170.51,35.08]
[1748139082790,1.6341,170.62,170.52,18.64964886]
[1748139083224,13.48430669,170.58,170.53,35.1]
[1748139084722,1.6341,170.62,170.53,35.1]
[1748139085019,13.48430669,170.6,170.53,35.1]
[1748139085314,13.48430669,170.59,170.53,35.1]
[1748139085812,13.48430669,170.58,170.53,35.1]
[1748139086419,13.48430669,170.59,170.53,35.1]
[1748139087517,13.48430669,170.59,170.54,257.8]
[1748139088118,13.48430669,170.6,170.54,38.82]
[1748139090316,13.48430669,170.61,170.53,35.1]
[1748139090519,15.11840669,170.62,170.53,35.1]
[1748139093713,6.2074,170.66,170.54,18.64964886]
[1748139093714,39.48430669,170.65,170.54,18.64964886]
[1748139094109,13.48430669,170.65,170.54,18.64964886]
[1748139095741,32.2074,170.66,170.54,18.64964886]
[1748139095909,13.48430669,170.65,170.54,101.14964886]
[1748139097014,13.48430669,170.65,170.55,6.4214]
[1748139097624,13.48430669,170.65,170.56,257.78]
[1748139098326,1.5117,170.67,170.57,1.6031]
[1748139098521,14.99600669,170.67,170.57,1.6031]
[1748139100539,1.5117,170.67,170.58,18.64964886]
[1748139100723,13.48430669,170.69,170.59,35.08]
[1748139102723,26.0,170.66,170.59,35.08]
[1748139102925,26.0,170.66,170.59,117.58]
[1748139105037,26.0,170.68,170.59,117.58]
[1748139105239,26.0,170.66,170.59,117.58]
[1748139107549,26.0,170.68,170.6,276.38964886]
[1748139108063,26.0,170.68,170.6,358.88964886]
[1748139109124,39.48430669,170.68,170.6,340.24]
[1748139109328,13.48430669,170.67,170.6,121.32]
[1748139109548,39.48430669,170.68,170.61,35.08]
[1748139109750,26.0,170.68,170.61,35.08]
[1748139110457,26.0,170.66,170.61,35.08]
[1748139114659,26.0,170.63,170.62,35.08]
[1748139116047,26.0,170.63,170.57,1.6031]
[1748139116281,26.0,170.63,170.58,35.08]
[1748139117557,13.48430669,170.64,170.59,257.06]
[1748139117753,26.0,170.63,170.59,292.14]
[1748139117943,26.0,170.63,170.59,35.08]
[1748139118657,26.0,170.64,170.59,35.08]
[1748139119041,26.0,170.63,170.59,35.08]
[1748139122348,26.0,170.64,170.59,35.08]
[1748139124262,26.0,170.68,170.59,35.08]
[1748139124463,26.0,170.64,170.59,35.08]
[1748139125763,13.48430669,170.66,170.59,35.08]
[1748139125939,26.0,170.63,170.59,35.08]
[1748139126452,26.0,170.68,170.59,35.08]
[1748139126660,26.0,170.63,170.59,35.08]
[1748139127466,26.0,170.63,170.6,257.06]
[1748139129563,26.0,170.63,170.6,38.16]
[1748139132046,26.0,170.63,170.59,35.08]
[1748139136766,26.0,170.64,170.59,35.08]
[1748139137480,26.0,170.64,170.6,257.06]
[1748139138287,8.0361,170.71,170.61,18.64964886]
[1748139138591,26.0,170.68,170.6,18.64964886]
[1748139139890,39.48430669,170.68,170.6,18.64964886]
[1748139140061,13.48430669,170.67,170.55,226.5583]
[1748139140267,13.48430669,170.67,170.56,53.72964886]
[1748139141183,26.0,170.68,170.56,53.72964886]
[1748139141674,39.48430669,170.68,170.56,53.72964886]
[1748139142462,13.48430669,170.67,170.56,53.72964886]
[1748139142979,26.0,170.68,170.56,53.72964886]
[1748139143185,13.48430669,170.67,170.56,53.72964886]
[1748139146182,26.0,170.68,170.56,53.72964886]
[1748139146371,13.48430669,170.67,170.56,53.72964886]
[1748139147068,13.48430669,170.64,170.56,101.14964886]
[1748139147270,26.0,170.63,170.57,35.08]
[1748139147585,26.0,170.63,170.58,256.9]
[1748139147781,26.0,170.62,170.58,256.9]
[1748139147976,26.0,170.62,170.58,38.02]
[1748139148379,26.0,170.62,170.57,35.08]
[1748139149104,13.48430669,170.65,170.57,35.08]
[1748139149309,26.0,170.62,170.57,35.08]
[1748139151812,4.16123178,170.7,170.58,18.64964886]
[1748139151988,26.0,170.65,170.59,0.14216157]
[1748139152806,4.16123178,170.7,170.61,0.14216157]
[1748139152807,17.64553847,170.7,170.61,0.14216157]
[1748139152987,26.0,170.67,170.62,35.08]
[1748139153312,8.0361,170.71,170.62,35.08]
[1748139153490,26.0,170.68,170.62,35.08]
[1748139153825,26.0,170.68,170.63,18.64964886]
[1748139156414,26.0,170.67,170.63,18.64964886]
[1748139156928,26.0,170.67,170.62,35.08]
[1748139157524,26.0,170.67,170.63,256.9]
[1748139158024,25.95502929,170.67,170.63,256.9]
[1748139159417,1.6006,170.71,170.64,18.64964886]
[1748139159921,1.6006,170.71,170.63,101.14964886]
[1748139159922,27.6006,170.71,170.63,101.14964886]
[1748139160826,1.6006,170.71,170.63,101.14964886]
[1748139161823,1.6006,170.71,170.63,105.80599662]
[1748139162622,6.4495,170.75,170.63,105.80599662]
[1748139162623,13.48430669,170.74,170.63,105.80599662]
[1748139162824,26.0,170.71,170.63,105.80599662]
[1748139167532,26.0,170.71,170.65,18.64964886]
[1748139167731,21.58420669,170.75,170.65,18.64964886]
[1748139168032,26.0,170.72,170.65,18.64964886]
[1748139170235,26.0,170.72,170.64,18.64964886]
[1748139171030,26.0,170.72,170.64,101.14964886]
[1748139171411,26.0,170.74,170.64,101.14964886]
[1748139172033,26.0,170.77,170.64,101.14964886]
[1748139172231,1.61,170.79,170.67,18.64964886]
[1748139172422,1.61,170.79,170.69,18.64964886]
[1748139173341,26.0,170.78,170.69,18.64964886]
[1748139173636,4.16123178,170.81,170.71,18.64964886]
[1748139173810,4.16123178,170.81,170.71,127.14964886]
[1748139174017,4.16123178,170.86,170.71,127.14964886]
[1748139174216,4.16123178,170.86,170.75,18.64964886]
[1748139174415,26.0,170.85,170.77,18.64964886]
[1748139174637,4.16123178,170.86,170.77,18.64964886]
[1748139175131,30.16123178,170.86,170.77,18.64964886]
[1748139175533,4.16123178,170.86,170.78,0.14216157]
[1748139175730,13.48430669,170.88,170.78,0.14216157]
[1748139175933,26.0,170.85,170.78,0.14216157]
[1748139177047,26.0,170.86,170.78,0.14216157]
[1748139177221,13.48430669,170.88,170.78,0.14216157]
[1748139177626,26.0,170.85,170.8,18.79181043]
[1748139178353,26.0,170.84,170.8,18.79181043]
[1748139179436,26.0,170.85,170.8,18.79181043]
[1748139180249,26.0,170.86,170.8,18.79181043]
[1748139180849,1.61,170.9,170.8,101.29181043]
[1748139181347,26.0,170.88,170.8,101.29181043]
[1748139183041,39.48430669,170.91,170.82,18.64964886]
[1748139183421,13.48430669,170.89,170.82,18.64964886]
[1748139183641,26.0,170.93,170.82,18.64964886]
[1748139183844,39.48430669,170.89,170.82,18.64964886]
[1748139184359,26.0,170.89,170.82,18.64964886]
[1748139185565,13.48430669,170.87,170.83,35.04]
[1748139185857,13.48430669,170.87,170.84,35.04]
[1748139186228,13.48430669,170.88,170.84,35.04]
[1748139186428,13.48430669,170.87,170.84,35.04]
[1748139187552,13.48430669,170.87,170.85,256.6]
[1748139187852,34.0398,170.89,170.85,256.6]
[1748139188035,47.52410669,170.89,170.85,256.6]
[1748139188829,27.6338,170.89,170.85,37.96]
[1748139189028,26.0,170.89,170.84,35.04]
[1748139191155,26.0,170.89,170.85,18.64964886]
[1748139192141,26.0,170.91,170.85,18.64964886]
[1748139193356,8.0398,170.97,170.85,101.14964886]
[1748139193561,26.0,170.94,170.85,104.0193251]
[1748139193739,8.0398,170.97,170.85,104.0193251]
[1748139193927,26.0,170.94,170.85,104.0193251]
[1748139194126,132.0636,174.27,170.88,26.0]
[1748139194127,1.6338,171.04,170.88,26.0]
[1748139194351,13.48430669,171.03,170.89,53.68964886]
[1748139194559,26.0,171.01,170.89,53.68964886]
[1748139194949,26.0,171.01,170.9,0.14216157]
[1748139195859,13.48430669,171.02,170.9,0.14216157]
[1748139196042,26.0,171.01,170.9,0.14216157]
[1748139196431,26.0,171.03,170.9,0.14216157]
[1748139196628,26.0,171.03,170.92,18.79181043]
[1748139197048,13.48430669,171.02,170.92,18.79181043]
[1748139197461,13.48430669,171.02,170.93,218.56]
[1748139197759,13.48430669,171.02,170.94,18.64964886]
[1748139197957,13.48430669,171.02,170.95,35.02]
[1748139198560,13.51050825,171.02,170.97,13.51050825]
[1748139199270,39.51050825,171.03,170.98,13.51050825]
[1748139199586,26.0,171.03,170.99,13.51050825]
[1748139202274,26.0,171.03,171.0,35.02]
[1748139202578,26.0,171.03,171.0,48.53050825]
[1748139203060,26.0,171.02,171.0,48.53050825]
[1748139203269,26.0,171.02,171.0,35.02]
[1748139204675,26.0,171.02,171.0,48.53050825]
[1748139207695,26.0,171.02,171.01,256.38]
[1748139207873,26.0,171.02,171.0,13.46553753]